bitfinex/quotes_BTCUSD_20251205
["timestamp","ask_amount","ask_price","bid_price","bid_amount"]
[1764952664153,0.06252299,88807.0,88786.0,0.05942827]
[1764952664369,0.06252299,88805.0,88786.0,0.05942827]
[1764952664576,0.06252299,88803.0,88801.0,0.001]
[1764952664816,0.33679606,88804.0,88785.0,0.00011975]
[1764952664817,0.10692,88786.0,88785.0,0.00011975]
[1764952665007,0.51229586,88786.0,88785.0,0.00011975]
[1764952665316,0.60347586,88786.0,88785.0,0.00111975]
[1764952665653,0.01985287,88786.0,88785.0,0.05971975]
[1764952665841,0.01824,88791.0,88785.0,0.12529173]
[1764952666651,0.01824,88791.0,88790.0,0.0596]
[1764952666853,0.00161287,88811.0,88790.0,0.0596]
[1764952667031,0.00161287,88811.0,88791.0,0.0596]
[1764952667032,0.38552299,88809.0,88791.0,0.0596]
[1764952667241,0.38552299,88809.0,88792.0,0.08867323]
[1764952667242,0.01379606,88808.0,88792.0,0.08867323]
[1764952667441,0.01824,88815.0,88808.0,0.0596]
[1764952667648,0.01379606,88837.0,88830.0,0.03361]
[1764952667983,0.01824,88836.0,88830.0,0.03361]
[1764952668727,0.01824,88836.0,88817.0,0.02192173]
[1764952668949,0.01824,88836.0,88830.0,0.00011975]
[1764952669152,0.13552399,88836.0,88830.0,0.00011975]
[1764952669355,0.44914299,88831.0,88830.0,0.00111975]
[1764952669755,0.54452299,88831.0,88830.0,0.00011975]
[1764952670277,0.38552299,88831.0,88830.0,0.00011975]
[1764952670824,0.45075586,88831.0,88830.0,0.00011975]
[1764952671158,0.38713586,88831.0,88830.0,0.00011975]
[1764952671487,0.54613586,88831.0,88830.0,0.00011975]
[1764952671776,0.54613586,88831.0,88830.0,0.00211975]
[1764952671777,0.56713586,88831.0,88830.0,0.00211975]
[1764952671922,0.47175586,88831.0,88830.0,0.00211975]
[1764952672122,0.40813586,88831.0,88830.0,0.00211975]
[1764952672856,0.47175586,88831.0,88830.0,0.00211975]
[1764952673058,0.56713586,88831.0,88830.0,0.00211975]
[1764952673430,0.06252299,88821.0,88784.0,0.01348]
[1764952673703,0.06252299,88812.0,88785.0,0.01240259]
[1764952673910,0.06252299,88810.0,88795.0,0.00642999]
[1764952674105,0.06413586,88810.0,88796.0,0.06265829]
[1764952674310,0.06413586,88810.0,88785.0,0.00597198]
[1764952674507,0.06413586,88810.0,88792.0,0.02192173]
[1764952674710,0.06413586,88810.0,88794.0,0.02699]
[1764952674889,0.06413586,88810.0,88794.0,0.02799]
[1764952675094,0.00161287,88810.0,88795.0,0.00865773]
[1764952675262,0.00161287,88810.0,88794.0,0.02599]
[1764952675463,0.00261287,88810.0,88795.0,0.07309892]
[1764952675666,0.001,88810.0,88809.0,0.0156]
[1764952675903,0.001,88810.0,88795.0,0.06444111]
[1764952676062,0.001,88810.0,88796.0,0.02104573]
[1764952676276,0.0182,88811.0,88796.0,0.02104573]
[1764952676500,0.0182,88811.0,88797.0,0.07086398]
[1764952676698,0.0182,88811.0,88798.0,0.02105812]
[1764952677667,0.0182,88811.0,88799.0,0.0210737]
[1764952677865,0.002,88810.0,88799.0,0.0210737]
[1764952678073,0.002,88810.0,88795.0,0.01]
[1764952678290,0.06252299,88809.0,88798.0,0.003]
[1764952678490,0.06252299,88807.0,88798.0,0.003]
[1764952678701,0.06252299,88807.0,88787.0,0.0156]
[1764952678702,0.06252299,88805.0,88787.0,0.0156]
[1764952678849,0.06252299,88805.0,88771.0,0.01911512]
[1764952678850,0.06151,88788.0,88777.0,0.0156]
[1764952679061,0.0182,88787.0,88777.0,0.0156]
[1764952679257,0.01981287,88787.0,88777.0,0.0156]
[1764952680343,0.00161287,88787.0,88777.0,0.0156]
[1764952680541,0.0182,88789.0,88778.0,0.02162525]
[1764952680745,0.06252299,88802.0,88780.0,0.02192173]
[1764952681006,0.32461287,88803.0,88790.0,0.59416295]
[1764952681220,0.09843,88822.0,88791.0,0.0071393]
[1764952681221,0.0182,88810.0,88791.0,0.0071393]
[1764952681447,0.00161287,88803.0,88791.0,0.0071393]
[1764952681739,0.00161287,88803.0,88792.0,0.07857226]
[1764952681947,0.00161287,88803.0,88792.0,0.06013022]
[1764952682154,0.00161287,88803.0,88790.0,0.59416295]
[1764952682534,0.04942,88791.0,88777.0,0.0166]
[1764952682737,0.38552299,88790.0,88777.0,0.0166]
[1764952682909,0.38552299,88790.0,88777.0,0.0156]
[1764952683110,0.0182,88789.0,88777.0,0.0156]
[1764952684234,0.0182,88789.0,88777.0,0.0186]
[1764952684642,0.0182,88789.0,88734.0,0.3968]
[1764952684643,0.06252299,88786.0,88769.0,0.0156]
[1764952684990,0.06252299,88786.0,88777.0,0.003]
[1764952685402,0.04942,88805.0,88785.0,0.0156]
[1764952685565,0.002,88789.0,88785.0,0.0156]
[1764952685771,0.0182,88796.0,88794.0,0.02192173]
[1764952686841,0.01379606,88813.0,88795.0,0.0156]
[1764952687047,0.01379606,88813.0,88782.0,0.0156]
[1764952687048,0.0182,88802.0,88787.0,0.04444755]
[1764952687282,0.0182,88802.0,88794.0,0.002]
[1764952687597,0.01379606,88801.0,88794.0,0.002]
[1764952687897,0.01379606,88801.0,88781.0,0.02018065]
[1764952687898,0.002,88789.0,88770.0,0.59416295]
[1764952688202,0.07631905,88799.0,88795.0,0.001]
[1764952688498,0.06252299,88797.0,88795.0,0.001]
[1764952688740,0.44703299,88796.0,88795.0,0.001]
[1764952688925,0.56736698,88796.0,88795.0,0.001]
[1764952689213,0.54546299,88796.0,88795.0,0.001]
[1764952689443,0.323,88796.0,88795.0,0.001]
[1764952689638,0.3412,88796.0,88787.0,0.02192173]
[1764952689762,0.003,88789.0,88787.0,0.02192173]
[1764952690577,0.003,88789.0,88788.0,0.0156]
[1764952691200,0.003,88789.0,88783.0,0.02192173]
[1764952691585,0.003,88789.0,88771.0,0.00556783]
[1764952691586,0.003,88789.0,88774.0,0.02192173]
[1764952691807,0.003,88789.0,88775.0,0.00672669]
[1764952692081,0.003,88789.0,88762.0,0.0156]
[1764952692082,0.04942,88772.0,88762.0,0.0156]
[1764952692281,0.0182,88771.0,88762.0,0.0156]
[1764952692577,0.0182,88771.0,88763.0,0.08004008]
[1764952692782,0.0182,88771.0,88765.0,0.02192173]
[1764952692979,0.0182,88771.0,88770.0,0.02192173]
[1764952693154,0.0182,88771.0,88763.0,0.06097629]
[1764952693360,0.006,88796.0,88770.0,0.0156]
[1764952693549,0.38552299,88793.0,88771.0,0.00699448]
[1764952693746,0.19294905,88795.0,88765.0,0.02192173]
[1764952693747,0.06252299,88791.0,88765.0,0.02192173]
[1764952693990,0.06252299,88789.0,88765.0,0.02192173]
[1764952694564,0.002,88771.0,88765.0,0.02192173]
[1764952695113,0.04942,88779.0,88765.0,0.02192173]
[1764952695660,0.04942,88779.0,88764.0,0.01906029]
[1764952695779,0.04942,88779.0,88765.0,0.00587017]
[1764952695975,0.002,88771.0,88765.0,0.00587017]
[1764952696180,0.002,88771.0,88765.0,0.00687017]
[1764952696620,0.002,88771.0,88763.0,0.0001197]
[1764952696881,0.002,88771.0,88763.0,0.00155529]
[1764952697100,0.002,88771.0,88765.0,0.001]
[1764952697310,0.06252299,88770.0,88765.0,0.001]
[1764952697517,0.04942,88766.0,88765.0,0.001]
[1764952697721,0.11093,88766.0,88765.0,0.001]
[1764952697950,0.323,88769.0,88765.0,0.001]
[1764952698159,0.002,88779.0,88768.0,0.0156]
[1764952698357,0.002,88779.0,88765.0,0.001]
[1764952698358,0.0182,88778.0,88769.0,0.60976295]
[1764952698573,0.0182,88778.0,88774.0,0.02192173]
[1764952698943,0.02392589,88792.0,88777.0,0.0156]
[1764952699156,0.04942,88800.0,88782.0,0.02192173]
[1764952699157,0.0182,88791.0,88782.0,0.02192173]
[1764952699351,0.0182,88791.0,88779.0,0.02192173]
[1764952699556,0.0182,88791.0,88772.0,0.02192173]
[1764952699779,0.0182,88791.0,88780.0,0.59416295]
[1764952699979,0.04942,88800.0,88781.0,0.05941629]
[1764952699980,0.0182,88795.0,88781.0,0.05941629]
[1764952700299,0.002,88792.0,88783.0,0.02192173]
[1764952700660,0.0182,88795.0,88783.0,0.02192173]
[1764952701039,0.0202,88795.0,88783.0,0.02192173]
[1764952701248,0.0202,88795.0,88781.0,0.01]
[1764952701249,0.02392589,88794.0,88781.0,0.01]
[1764952701470,0.06252299,88793.0,88780.0,0.003]
[1764952701691,0.02392589,88792.0,88780.0,0.003]
[1764952701892,0.00161287,88792.0,88783.0,0.002]
[1764952702202,0.02553876,88792.0,88778.0,0.02192173]
[1764952702379,0.00161287,88792.0,88783.0,0.001]
[1764952703096,0.04942,88832.0,88809.0,0.02192173]
[1764952703242,0.00161287,88814.0,88809.0,0.02192173]
[1764952703455,0.00161287,88814.0,88800.0,0.59416295]
[1764952703660,0.00161287,88814.0,88802.0,0.02192173]
[1764952704076,0.00161287,88814.0,88806.0,0.02192173]
[1764952704263,0.00168905,88814.0,88806.0,0.02192173]
[1764952704464,0.00168905,88814.0,88803.0,0.06316847]
[1764952704693,0.00368905,88814.0,88807.0,0.02192173]
[1764952704889,0.00368905,88814.0,88803.0,0.06316847]
[1764952705161,0.04942,88804.0,88793.0,0.02192173]
[1764952705370,0.38552299,88800.0,88766.0,0.0156]
[1764952705576,0.06252299,88798.0,88767.0,0.00793429]
[1764952705784,0.06252299,88798.0,88766.0,0.0156]
[1764952705785,0.06252299,88796.0,88772.0,0.02192173]
[1764952705924,0.323,88800.0,88784.0,0.02192173]
[1764952706124,0.39833373,88799.0,88773.0,0.00794232]
[1764952706373,0.06252299,88799.0,88778.0,0.02192173]
[1764952706630,0.02392589,88798.0,88778.0,0.02192173]
[1764952706833,0.38552299,88800.0,88778.0,0.02192173]
[1764952707029,0.323,88800.0,88780.0,0.59416295]
[1764952707293,0.323,88800.0,88793.0,0.001]
[1764952707532,0.323,88800.0,88774.0,0.06177053]
[1764952707533,0.06252299,88798.0,88774.0,0.06177053]
[1764952707875,0.06252299,88799.0,88784.0,0.02192173]
[1764952708103,0.007,88800.0,88793.0,0.02192173]
[1764952708289,0.007,88800.0,88785.0,0.01545009]
[1764952708290,0.02392589,88803.0,88787.0,0.02192173]
[1764952708629,0.018,88800.0,88796.0,0.02192173]
[1764952708829,0.0182,88804.0,88797.0,0.06180847]
[1764952709710,0.0182,88807.0,88797.0,0.06180847]
[1764952710050,0.0182,88807.0,88789.0,0.02192173]
[1764952710366,0.001,88799.0,88790.0,0.00741403]
[1764952710568,0.0182,88807.0,88790.0,0.00741403]
[1764952711005,0.0182,88807.0,88797.0,0.001]
[1764952711006,0.0192,88807.0,88797.0,0.001]
[1764952711374,0.00168905,88814.0,88803.0,0.02192173]
[1764952711598,0.00168905,88814.0,88806.0,0.0156]
[1764952711796,7.618e-05,88814.0,88813.0,0.0156]
[1764952712272,7.618e-05,88814.0,88807.0,0.07838964]
[1764952712496,7.618e-05,88814.0,88813.0,0.0156]
[1764952712909,7.618e-05,88814.0,88813.0,0.0312]
[1764952713123,7.618e-05,88814.0,88813.0,0.05312173]
[1764952713332,0.00107618,88814.0,88813.0,0.05312173]
[1764952713830,0.00207618,88814.0,88813.0,0.05312173]
[1764952713993,0.00107618,88814.0,88813.0,0.05312173]
[1764952714363,0.00207618,88814.0,88813.0,0.016]
[1764952714786,7.618e-05,88814.0,88813.0,0.004]
[1764952715003,0.00207618,88814.0,88813.0,0.018]
[1764952715234,0.00368905,88814.0,88813.0,0.014]
[1764952715584,0.00368905,88814.0,88794.0,0.00857238]
[1764952715585,0.00168905,88814.0,88794.0,0.00857238]
[1764952715790,0.00168905,88814.0,88813.0,0.003]
[1764952715998,0.08277553,88814.0,88813.0,0.003]
[1764952716176,0.47715793,88814.0,88813.0,0.003]
[1764952716493,0.54623204,88814.0,88813.0,0.003]
[1764952716836,0.56913603,88814.0,88813.0,0.009]
[1764952717034,0.56913603,88814.0,88777.0,0.02192173]
[1764952717035,0.02190399,88808.0,88777.0,0.02192173]
[1764952717230,0.06252299,88807.0,88781.0,0.02192173]
[1764952717458,0.06252299,88805.0,88790.0,0.02192173]
[1764952717661,0.06252299,88805.0,88786.0,0.02192173]
[1764952717986,0.0182,88804.0,88787.0,0.09588739]
[1764952718197,0.0182,88804.0,88787.0,0.07856137]
[1764952718392,0.0182,88804.0,88786.0,0.02192173]
[1764952718843,0.06252299,88803.0,88775.0,0.01736053]
[1764952719073,0.06252299,88803.0,88777.0,0.02192173]
[1764952719074,0.04882,88787.0,88777.0,0.02192173]
[1764952719318,0.0182,88786.0,88777.0,0.02192173]
[1764952719694,0.0182,88786.0,88772.0,0.02192173]
[1764952720434,0.06252299,88785.0,88777.0,0.003]
[1764952720654,0.04882,88792.0,88777.0,0.003]
[1764952720655,0.0182,88784.0,88778.0,0.02192173]
[1764952721213,0.0182,88784.0,88777.0,0.0031197]
[1764952721658,0.0182,88784.0,88777.0,0.0001197]
[1764952722011,0.0182,88783.0,88782.0,0.02192173]
[1764952722211,0.0182,88783.0,88777.0,0.0001197]
[1764952722433,0.0182,88789.0,88782.0,0.0156]
[1764952722643,0.0182,88790.0,88789.0,0.02192173]
[1764952722849,0.0182,88793.0,88790.0,0.02192173]
[1764952723270,0.0182,88793.0,88788.0,0.02192173]
[1764952723672,0.0182,88793.0,88783.0,0.02192173]
[1764952724056,0.0182,88793.0,88784.0,0.01228652]
[1764952724254,0.0202,88793.0,88790.0,0.007]
[1764952724477,0.0182,88793.0,88784.0,0.01228652]
[1764952724681,0.0182,88793.0,88785.0,0.0318]
[1764952724838,0.0202,88793.0,88792.0,0.0474]
[1764952725244,0.04882,88832.0,88792.0,0.0474]
[1764952725245,0.02316936,88829.0,88801.0,0.02192173]
[1764952725596,0.02392589,88831.0,88810.0,0.02192173]
[1764952725914,0.0182,88815.0,88810.0,0.02192173]
[1764952726117,0.0182,88815.0,88803.0,0.02192173]
[1764952726359,0.02553876,88814.0,88791.0,0.01286407]
[1764952726739,0.0182,88813.0,88798.0,0.02192173]
[1764952727141,0.0182,88813.0,88810.0,0.003]
[1764952727744,0.02215769,88812.0,88810.0,0.003]
[1764952727958,0.00173217,88814.0,88810.0,0.003]
[1764952728301,0.0182,88813.0,88784.0,0.0656]
[1764952728458,0.06387,88811.0,88798.0,0.005]
[1764952728660,0.08644888,88810.0,88798.0,0.005]
[1764952728867,0.04593,88799.0,88776.0,0.0474]
[1764952729075,0.0182,88798.0,88777.0,0.00112678]
[1764952729274,0.0182,88798.0,88784.0,0.02192173]
[1764952729616,0.04593,88786.0,88763.0,0.0474]
[1764952729840,0.04593,88786.0,88769.0,0.02192173]
[1764952729841,0.0182,88785.0,88769.0,0.02192173]
[1764952730039,0.0182,88785.0,88770.0,0.00693217]
[1764952730787,0.0182,88785.0,88617.0,0.01126594]
[1764952730788,0.06252299,88784.0,88762.0,0.02192173]
[1764952730982,0.06252299,88784.0,88762.0,0.02231927]
[1764952731208,0.06252299,88784.0,88762.0,0.00039754]
[1764952731616,0.06252299,88784.0,88770.0,0.005]
[1764952731955,0.06252299,88784.0,88762.0,0.00039754]
[1764952731956,0.06252299,88784.0,88769.0,0.001]
[1764952732186,0.06252299,88782.0,88762.0,0.00039754]
[1764952732393,0.06252299,88782.0,88762.0,0.00339754]
[1764952732637,0.38552299,88780.0,88762.0,0.00039754]
[1764952733394,0.06252299,88778.0,88770.0,0.001]
[1764952734189,0.001,88784.0,88770.0,0.001]
[1764952734357,0.08072299,88783.0,88770.0,0.001]
[1764952734566,0.06252299,88781.0,88770.0,0.001]
[1764952734990,0.0985,88789.0,88763.0,0.02192173]
[1764952735121,0.0985,88789.0,88762.0,0.00039754]
[1764952735122,0.0182,88780.0,88764.0,0.03175687]
[1764952735323,0.0192,88780.0,88764.0,0.03175687]
[1764952735528,0.0182,88780.0,88764.0,0.03175687]
[1764952735744,0.06252299,88785.0,88764.0,0.00922522]
[1764952735948,0.0182,88779.0,88772.0,0.02192173]
[1764952736146,0.0182,88778.0,88772.0,0.02192173]
[1764952736513,0.0182,88777.0,88772.0,0.02192173]
[1764952736720,0.06012,88773.0,88764.0,0.003]
[1764952736920,0.06173287,88773.0,88762.0,0.00039754]
[1764952737408,0.00161287,88773.0,88762.0,0.00039754]
[1764952738127,0.0182,88772.0,88762.0,0.00039754]
[1764952738735,0.0182,88771.0,88762.0,0.00339754]
[1764952738935,0.0182,88770.0,88767.0,0.02192173]
[1764952739454,0.0182,88770.0,88769.0,0.0474]
[1764952740206,0.0202,88770.0,88769.0,0.0474]
[1764952740402,0.002,88770.0,88769.0,0.06993038]
[1764952740607,0.002,88770.0,88769.0,0.0474]
[1764952741159,0.002,88770.0,88769.0,0.0948]
[1764952741375,0.002,88770.0,88769.0,0.14094097]
[1764952741513,0.0182,88789.0,88786.0,0.02192173]
[1764952741916,0.02241801,88814.0,88769.0,0.07361924]
[1764952741917,0.04536,88823.0,88799.0,0.02192173]
[1764952742121,0.02392589,88822.0,88803.0,0.0474]
[1764952742423,0.0182,88821.0,88809.0,0.02192173]
[1764952742622,0.02392589,88820.0,88809.0,0.02192173]
[1764952742846,0.02553876,88820.0,88804.0,0.00693217]
[1764952743209,0.02553876,88820.0,88792.0,0.02192173]
[1764952743210,0.06252299,88817.0,88792.0,0.02192173]
[1764952743378,0.06252299,88815.0,88792.0,0.02192173]
[1764952743602,0.06252299,88813.0,88770.0,0.74637466]
[1764952743802,0.06252299,88811.0,88784.0,0.02192173]
[1764952743941,0.06252299,88809.0,88784.0,0.02192173]
[1764952744128,0.04536,88789.0,88780.0,0.0318]
[1764952744334,0.08072299,88788.0,88754.0,0.0474]
[1764952744689,0.06252299,88786.0,88750.0,0.0474]
[1764952744901,0.40742698,88784.0,88751.0,0.01761433]
[1764952745072,0.06252299,88782.0,88742.0,0.00112675]
[1764952745273,0.37376247,88781.0,88755.0,0.01599754]
[1764952745483,0.51141244,88781.0,88780.0,0.005]
[1764952745677,0.38713586,88781.0,88755.0,0.01599754]
[1764952745875,0.38713586,88781.0,88755.0,0.01699754]
[1764952746078,0.38713586,88781.0,88755.0,0.01799754]
[1764952746405,0.04379,88756.0,88755.0,0.00139754]
[1764952746604,0.06199,88756.0,88755.0,0.00139754]
[1764952747085,0.06199,88756.0,88755.0,0.00039754]
[1764952747288,0.0182,88756.0,88755.0,0.00039754]
[1764952747489,0.56128299,88756.0,88755.0,0.00039754]
[1764952747668,0.46384299,88756.0,88755.0,0.00039754]
[1764952747871,0.40372299,88756.0,88755.0,0.00039754]
[1764952748190,0.56128299,88756.0,88755.0,0.00039754]
[1764952748351,0.56128299,88756.0,88755.0,0.00239754]
[1764952748559,0.323,88756.0,88755.0,0.00239754]
[1764952748811,0.3412,88756.0,88755.0,0.00139754]
[1764952748954,0.0182,88756.0,88755.0,0.00139754]
[1764952749154,0.04536,88763.0,88755.0,0.00039754]
[1764952749155,0.06252299,88762.0,88755.0,0.00039754]
[1764952749373,0.014,88756.0,88755.0,0.00139754]
[1764952749771,0.0182,88761.0,88755.0,0.00039754]
[1764952750172,0.12264299,88756.0,88755.0,0.00039754]
[1764952750619,0.22008299,88756.0,88755.0,0.00039754]
[1764952750791,0.22008299,88756.0,88715.0,0.0001]
[1764952750792,0.38552299,88739.0,88715.0,0.0001]
[1764952750994,0.04536,88716.0,88715.0,0.0001]
[1764952751330,0.18438299,88716.0,88715.0,0.0001]
[1764952751580,0.54652299,88716.0,88660.0,0.00099999]
[1764952751796,0.54652299,88716.0,88625.0,0.06693002]
[1764952751797,0.00099999,88630.0,88625.0,0.06693002]
[1764952751991,0.161986,88627.0,88622.0,0.0156]
[1764952752192,0.06252299,88627.0,88622.0,0.0156]
[1764952752305,0.00199998,88620.0,88600.0,0.05988069]
[1764952752540,0.06252299,88619.0,88600.0,0.05988069]
[1764952752755,0.38552299,88617.0,88600.0,0.01250069]
[1764952752971,0.05291946,88617.0,88600.0,0.01250069]
[1764952753182,0.02190399,88616.0,88600.0,0.01250069]
[1764952753860,0.323,88615.0,88600.0,0.01250069]
[1764952754068,0.323,88613.0,88600.0,0.01250069]
[1764952754269,0.323,88608.0,88600.0,0.01250069]
[1764952754475,0.00099999,88560.0,88546.0,0.04001069]
[1764952754695,0.00099999,88560.0,88556.0,0.00030005]
[1764952755227,0.06252299,88556.0,88547.0,0.00434145]
[1764952755403,0.06252299,88549.0,88534.0,0.04738]
[1764952755604,0.06291897,88549.0,88522.0,0.04738]
[1764952755800,0.06291897,88549.0,88534.0,0.04738]
[1764952756374,0.06291897,88549.0,88522.0,0.04738]
[1764952756770,0.06291897,88549.0,88546.0,0.005]
[1764952757073,0.01871598,88549.0,88546.0,0.005]
[1764952757293,0.06252299,88547.0,88513.0,0.04738]
[1764952757502,0.06252299,88547.0,88537.0,0.0086]
[1764952757697,0.06252299,88545.0,88537.0,0.0086]
[1764952757941,0.01808,88546.0,88537.0,0.0086]
[1764952757942,0.38713586,88538.0,88537.0,0.0086]
[1764952758142,0.38713586,88538.0,88537.0,0.0046]
[1764952758341,0.34269287,88538.0,88510.0,4.408e-05]
[1764952758545,0.00299997,88520.0,88510.0,4.408e-05]
[1764952758705,0.06252299,88519.0,88510.0,4.408e-05]
[1764952759548,0.06252299,88517.0,88510.0,4.408e-05]
[1764952759724,0.0645316,88517.0,88510.0,4.408e-05]
[1764952760126,0.00039574,88517.0,88510.0,4.408e-05]
[1764952760300,0.06252299,88515.0,88510.0,4.408e-05]
[1764952760742,0.06691873,88517.0,88510.0,4.408e-05]
[1764952760877,0.06691873,88517.0,88510.0,0.00404408]
[1764952761247,0.06291873,88517.0,88510.0,0.00404408]
[1764952761441,0.06691873,88517.0,88510.0,4.408e-05]
[1764952761736,0.00439574,88517.0,88510.0,0.00404408]
[1764952762767,0.4,88512.0,88510.0,4.408e-05]
[1764952763191,0.00439574,88517.0,88511.0,0.0978]
[1764952763540,0.00439574,88517.0,88500.0,3.85245386]
[1764952763541,0.03451,88501.0,88500.0,3.85245386]
[1764952763670,0.25812587,88501.0,88500.0,3.81855364]
[1764952763882,0.03451,88501.0,88500.0,3.81855364]
[1764952764082,0.00299997,88510.0,88500.0,3.81855364]
[1764952764919,0.004,88501.0,88500.0,3.81855364]
[1764952765808,0.004,88501.0,88500.0,3.9282587]
[1764952766010,0.00039574,88517.0,88500.0,3.90898364]
[1764952766273,0.00099999,88530.0,88510.0,0.00030005]
[1764952766563,0.004,88517.0,88510.0,0.00041975]
[1764952766739,0.00281398,88530.0,88515.0,0.00030005]
[1764952766943,0.00281398,88540.0,88520.0,0.55176381]
[1764952767151,0.02823327,88597.0,88516.0,0.01381633]
[1764952767152,0.302995,88608.0,88561.0,0.04742]
[1764952767354,0.173398,88606.0,88562.0,0.0186]
[1764952767624,0.02821511,88605.0,88568.0,0.00030005]
[1764952767797,0.02821511,88605.0,88566.0,0.00030005]
[1764952768014,0.02821511,88605.0,88561.0,0.04742]
[1764952768015,1.510512,88604.0,88561.0,0.04742]
[1764952768223,1.510512,88604.0,88517.0,0.323]
[1764952768224,0.02241801,88585.0,88548.0,0.0186]
[1764952768385,0.323,88582.0,88561.0,0.0001197]
[1764952768591,0.323,88576.0,88561.0,0.0001197]
[1764952768942,0.00161287,88576.0,88561.0,0.0001197]
[1764952769282,0.00161287,88576.0,88562.0,0.002]
[1764952769869,0.00161287,88576.0,88566.0,0.007]
[1764952770073,0.00261287,88576.0,88566.0,0.007]
[1764952770269,0.00261287,88576.0,88561.0,0.0001197]
[1764952770584,0.00261287,88576.0,88562.0,0.001]
[1764952770785,0.02821988,88590.0,88562.0,0.09043]
[1764952771013,0.001,88576.0,88565.0,0.00030005]
[1764952771360,0.00461287,88576.0,88566.0,0.001]
[1764952771475,0.001,88576.0,88562.0,0.09043]
[1764952772260,0.02821702,88599.0,88562.0,0.09043]
[1764952772261,0.323,88595.0,88562.0,0.09043]
[1764952772568,0.001,88576.0,88562.0,0.09043]
[1764952772807,0.001,88576.0,88563.0,0.02765497]
[1764952773007,0.001,88590.0,88570.0,0.00030005]
[1764952773146,0.001,88590.0,88578.0,0.00030005]
[1764952773548,0.001,88590.0,88579.0,0.0186]
[1764952773751,0.02821256,88613.0,88579.0,0.0186]
[1764952774000,0.04231,88624.0,88594.0,0.02192173]
[1764952774144,0.001,88595.0,88580.0,0.70256954]
[1764952774498,0.02982543,88613.0,88581.0,0.10903]
[1764952774704,0.02982543,88613.0,88582.0,0.00030005]
[1764952774859,0.002,88590.0,88587.0,0.00030005]
[1764952775059,0.002,88590.0,88581.0,0.09043]
[1764952775268,0.002,88590.0,88588.0,0.0186]
[1764952775477,0.002,88590.0,88588.0,0.10903]
[1764952775884,0.002,88590.0,88589.0,0.01091497]
[1764952776106,0.00261287,88613.0,88588.0,0.0186]
[1764952776107,0.02982543,88613.0,88588.0,0.0186]
[1764952776307,0.02982543,88613.0,88587.0,0.0001197]
[1764952776308,0.323,88611.0,88587.0,0.0001197]
[1764952776484,0.002,88595.0,88588.0,0.11103]
[1764952776685,0.02982543,88613.0,88588.0,0.002]
[1764952776884,0.323,88609.0,88587.0,0.0187197]
[1764952777086,0.001,88590.0,88589.0,0.011]
[1764952777309,0.001,88590.0,88589.0,0.10143]
[1764952777508,0.323,88609.0,88589.0,0.09043]
[1764952777509,0.02821415,88608.0,88589.0,0.09043]
[1764952777711,0.02821415,88608.0,88590.0,0.0186]
[1764952777911,0.02821415,88608.0,88591.0,0.0186]
[1764952778124,0.00761287,88613.0,88591.0,0.0186]
[1764952778314,0.323,88614.0,88591.0,0.02021287]
[1764952778629,0.323,88612.0,88591.0,0.00161287]
[1764952778852,0.0282132,88611.0,88591.0,0.00161287]
[1764952779616,0.02241801,88621.0,88592.0,0.09043]
[1764952779617,0.323,88618.0,88592.0,0.09043]
[1764952779839,0.02821129,88617.0,88593.0,0.00030005]
[1764952780037,0.02821129,88617.0,88593.0,0.00191292]
[1764952780239,0.004,88611.0,88594.0,0.09043]
[1764952780444,0.05092904,88617.0,88594.0,0.09043]
[1764952780445,0.02271775,88616.0,88594.0,0.09204287]
[1764952780773,0.323,88618.0,88594.0,0.09204287]
[1764952780774,0.05092967,88615.0,88594.0,0.09204287]
[1764952780916,0.02821192,88615.0,88594.0,0.09204287]
[1764952781118,0.03838683,88625.0,88594.0,0.09204287]
[1764952781119,0.05163467,88623.0,88597.0,0.02192173]
[1764952781326,0.02891692,88619.0,88616.0,0.04742]
[1764952781533,0.02271775,88618.0,88617.0,0.01856]
[1764952781757,0.02271775,88618.0,88617.0,0.02017287]
[1764952782068,0.02820206,88646.0,88617.0,0.02017287]
[1764952782069,0.02271775,88630.0,88619.0,0.02192173]
[1764952782224,0.02271775,88636.0,88619.0,0.00161287]
[1764952782554,0.00039647,88636.0,88623.0,0.02192173]
[1764952782755,0.00039647,88636.0,88634.0,0.02192173]
[1764952782960,0.00039647,88636.0,88617.0,0.03736229]
[1764952782961,0.00039647,88636.0,88635.0,0.02017287]
[1764952783319,0.00039647,88636.0,88635.0,0.11060287]
[1764952783517,0.00039647,88636.0,88635.0,0.12166316]
[1764952783717,0.02891692,88662.0,88648.0,0.02192173]
[1764952783946,0.05091504,88661.0,88649.0,0.01856]
[1764952784260,0.02891692,88671.0,88663.0,0.04742]
[1764952784465,0.02891692,88678.0,88664.0,0.01856]
[1764952784642,0.0281922,88677.0,88664.0,0.01856]
[1764952784806,0.0281922,88677.0,88665.0,0.09043]
[1764952785005,0.02891692,88680.0,88665.0,0.09043]
[1764952785248,0.02819156,88679.0,88665.0,0.09043]
[1764952785451,0.02891692,88687.0,88665.0,0.09204287]
[1764952785656,0.05710308,88696.0,88669.0,0.61213954]
[1764952785826,0.0495,88712.0,88669.0,0.61213954]
[1764952785827,0.02891692,88702.0,88670.0,0.68915578]
[1764952786030,0.02818298,88706.0,88670.0,0.78119865]
[1764952786251,0.02818298,88706.0,88681.0,0.02192173]
[1764952786480,0.0281798,88716.0,88690.0,0.59500573]
[1764952786709,0.0495,88734.0,88690.0,0.59500573]
[1764952786710,0.02891692,88720.0,88705.0,0.04922]
[1764952786879,0.05778025,88730.0,88706.0,0.61356573]
[1764952786880,0.02911692,88730.0,88706.0,0.61356573]
[1764952787118,0.02817568,88729.0,88711.0,0.02192173]
[1764952787339,0.02817568,88729.0,88711.0,0.0235346]
[1764952787522,0.02857264,88729.0,88712.0,0.01856]
[1764952788132,0.02817599,88728.0,88712.0,0.01856]
[1764952788340,0.02817599,88728.0,88708.0,0.01856]
[1764952788477,0.02191857,88723.0,88705.0,0.04922]
[1764952788682,0.0281779,88722.0,88706.0,0.01856]
[1764952789090,0.02817726,88724.0,88707.0,0.09332]
[1764952789451,0.02817758,88723.0,88707.0,0.09493287]
[1764952789625,0.02857264,88729.0,88708.0,0.01856]
[1764952789966,0.30703057,88728.0,88705.0,0.04922]
[1764952790217,0.02817631,88727.0,88696.0,0.04922]
[1764952790427,0.06252299,88721.0,88687.0,0.09332]